bitfinex-derivatives/quotes_ETHF0:USTF0_20251116
["timestamp","ask_amount","ask_price","bid_price","bid_amount"]
[1763331913940,2.00973,3074.4,3073.4,3.2078]
[1763331914136,0.52735,3074.3,3073.4,3.2078]
[1763331914335,0.0048794,3074.2,3073.5,0.0048794]
[1763331914531,0.0048794,3074.2,3073.8,3.2078]
[1763331915940,0.0048794,3074.2,3073.9,1.90780143]
[1763331916742,3.2078,3075.0,3073.9,1.90780143]
[1763331916941,3.2078,3075.0,3074.6,3.2078]
[1763331917446,3.2078,3075.0,3074.1,3.2078]
[1763331917644,0.0048794,3074.9,3074.1,3.2078]
[1763331918033,0.0048794,3074.9,3074.5,3.2078]
[1763331924046,3.21152595,3076.2,3074.8,2.3637]
[1763331924354,3.21152595,3076.2,3074.7,2.26251327]
[1763331924355,3.21152595,3076.2,3075.5,3.2078]
[1763331924649,0.52704,3076.1,3075.5,3.2078]
[1763331925048,0.0048794,3076.1,3075.5,3.2126794]
[1763331925839,2.301,3075.6,3075.5,3.2126794]
[1763331926043,2.301,3075.6,3075.5,0.0048794]
[1763331927444,2.82812,3075.6,3075.5,0.0048794]
[1763331929249,3.60047797,3075.6,3075.5,0.0048794]
[1763331929852,1.3829,3075.1,3074.9,3.2078]
[1763331930149,2.82822,3075.0,3074.2,2.26251327]
[1763331930347,2.82822,3075.0,3073.7,1.4293]
[1763331930348,1.3829,3075.1,3074.4,3.2078]
[1763331930551,3.2078,3074.9,3074.4,3.2078]
[1763331930942,1.3829,3075.1,3074.4,3.2078]
[1763331931149,2.301,3074.5,3074.4,3.2078]
[1763331931452,16.298,3074.9,3074.4,3.2078]
[1763331931652,16.82524,3074.9,3074.4,3.2078]
[1763331931948,0.52722,3075.0,3074.4,3.2078]
[1763331932148,0.77083556,3074.9,3074.4,3.2078]
[1763331932554,1.91011,3075.1,3074.4,3.2078]
[1763331932856,0.77079453,3075.0,3074.4,3.2078]
[1763331933256,1.3829,3075.1,3074.4,3.2078]
[1763331933552,1.9101,3075.1,3074.4,3.2078]
[1763331934257,0.77114591,3075.0,3074.4,3.2078]
[1763331934957,3.2078,3074.9,3074.4,3.2078]
[1763331935150,2.301,3074.5,3074.4,3.2078]
[1763331935350,2.301,3074.5,3074.3,0.0048794]
[1763331935549,3.2078,3074.9,3074.3,0.0048794]
[1763331935749,3.2078,3074.9,3074.4,3.2078]
[1763331936053,3.6839,3074.4,3074.3,0.0048794]
[1763331936359,3.2078,3074.9,3074.3,2.3502794]
[1763331936661,1.3829,3074.4,3074.3,0.0048794]
[1763331937258,4.98581533,3074.4,3074.3,0.0048794]
[1763331937456,5.85871422,3074.4,3074.3,0.0048794]
[1763331937654,1.3829,3073.8,3073.4,0.00333777]
[1763331937853,0.77459533,3073.7,3073.4,0.00333777]
[1763331939253,0.77459533,3073.6,3073.4,0.00333777]
[1763331939458,2.301,3073.5,3073.4,0.00333777]
[1763331939668,2.82851,3073.3,3073.2,0.0048794]
[1763331939858,1.3829,3073.2,3072.3,3.2078]
[1763331940056,0.77541463,3073.1,3072.3,3.2078]
[1763331940259,0.77541463,3073.1,3072.7,3.2078]
[1763331940563,0.77541463,3073.1,3073.0,2.3454]
[1763331940765,0.77541463,3073.1,3073.0,0.00419143]
[1763331941365,3.2078,3073.5,3073.0,0.00419143]
[1763331941656,2.55407618,3073.8,3073.3,2.3454]
[1763331941657,0.77465062,3073.4,3073.3,2.3454]
[1763331941861,1.38699668,3073.8,3073.3,2.3454]
[1763331942062,0.77459406,3073.7,3073.3,2.3454]
[1763331946253,1.38699668,3073.8,3073.3,2.3454]
[1763331947867,3.2078,3074.3,3073.8,2.3454]
[1763331948066,3.2078,3074.3,3073.9,3.2078]
[1763331948869,3.21095273,3074.3,3073.9,3.2078]
[1763331951168,2.2964,3073.6,3073.5,3.2078]
[1763331951762,2.2964,3073.6,3073.0,3.21199143]
[1763331952069,1.3954,3073.2,3073.0,3.21199143]
[1763331952267,1.3954,3073.8,3073.0,3.21199143]
[1763331952770,2.2964,3073.1,3073.0,0.00419143]
[1763331954071,1.3954,3073.2,3073.0,0.00419143]
[1763331956665,3.2078,3073.7,3073.0,3.21199143]
[1763331956865,3.2078,3073.7,3073.6,2.2105]
[1763331957175,3.2078,3074.1,3073.6,2.2105]
[1763331957377,1.3877794,3074.4,3074.0,2.2105]
[1763331957876,1.3877794,3074.4,3073.9,3.2078]
[1763331959277,0.77782402,3074.3,3073.9,3.2078]
[1763331959781,0.00315273,3074.3,3073.9,3.2078]
[1763331960168,0.77801722,3074.3,3073.9,3.2078]
[1763331961974,0.77801722,3074.3,3074.2,2.2105]
[1763331962165,3.2078,3075.5,3074.8,2.2105]
[1763331962366,3.2078,3075.5,3074.6,5.47031327]
[1763331962571,2.2964,3075.2,3075.1,3.2078]
[1763331962767,3.2078,3075.5,3075.1,3.2078]
[1763331963081,3.21148158,3075.5,3075.4,2.2105]
[1763331963278,3.21148158,3075.5,3075.4,2.55983662]
[1763331963586,0.0048794,3075.6,3075.5,2.2105]
[1763331963783,0.0048794,3075.6,3075.5,5.4183]
[1763331964179,0.0048794,3075.6,3075.5,3.2078]
[1763331964680,0.00892163,3075.6,3075.5,3.2078]
[1763331968273,0.00892163,3075.6,3075.5,5.4183]
[1763331972284,3.6918,3075.5,3075.4,0.00308458]
[1763331972674,0.00892163,3075.6,3075.4,2.21358458]
[1763331972880,0.00892163,3075.6,3075.5,2.2105]
[1763331973082,1.3954,3075.5,3075.4,0.00308458]
[1763331974781,3.6918,3075.5,3075.4,0.00308458]
[1763331975286,3.2078,3076.9,3075.5,0.7704]
[1763331975483,3.6918,3076.5,3076.4,3.2078]
[1763331975986,3.6918,3076.5,3075.4,0.00308458]
[1763331975987,3.3027,3075.5,3075.4,0.00308458]
[1763331976183,1.24749308,3075.5,3075.4,0.00308458]
[1763331976590,3.30679308,3075.5,3075.4,0.00308458]
[1763331977291,1.24749308,3075.5,3075.4,0.00308458]
[1763331977486,3.30679308,3075.5,3075.4,0.00308458]
[1763331977887,1.24749308,3075.5,3075.4,0.00308458]
[1763331978084,0.00409308,3075.5,3075.4,2.05358458]
[1763331979088,0.00409308,3075.5,3075.4,0.00308458]
[1763331979289,2.17419308,3075.5,3075.4,0.00308458]
[1763331979586,0.00409308,3075.5,3075.4,0.00308458]
[1763331979791,2.17419308,3075.5,3075.4,0.00308458]
[1763331981688,3.36129308,3075.5,3075.4,0.00308458]
[1763331981993,0.00409308,3075.5,3075.4,2.00728458]
[1763331982692,1.19119308,3075.5,3075.4,0.00308458]
[1763331982995,1.19119308,3075.5,3075.4,0.53023458]
[1763331983289,0.00409308,3075.5,3075.4,2.53443458]
[1763331983694,0.00409308,3075.5,3075.0,0.0048794]
[1763331983695,2.1701,3075.1,3075.0,0.0048794]
[1763331983893,2.1701,3074.6,3074.5,3.73511]
[1763331984193,6.565,3075.0,3074.9,0.52724]
[1763331984787,6.565,3075.0,3074.9,0.53023134]
[1763331985994,2.1701,3074.7,3074.6,0.0048794]
[1763331986595,2.1701,3074.7,3074.6,0.5321694]
[1763331986892,0.52727,3074.7,3074.6,0.52729]
[1763331987083,2.69737,3074.7,3074.6,0.53028306]
[1763331987283,2.69737,3074.7,3074.6,0.00299306]
[1763331987493,2.1701,3074.2,3074.1,3.73517]
[1763331987692,1.1871,3074.4,3073.1,2.30816666]
[1763331987693,2.1701,3073.7,3073.6,0.52746]
[1763331988188,2.1701,3073.6,3073.5,3.73528]
[1763331988389,1.1871,3073.8,3073.7,0.52744]
[1763331988585,3.3572,3073.8,3073.7,0.52744]
[1763331989394,0.0048794,3074.0,3073.9,0.52741]
[1763331989591,1.1871,3074.4,3074.2,0.52736]
[1763331989888,3.2078,3074.7,3074.6,0.52729]
[1763331991089,0.0048794,3075.0,3074.9,0.52724]
[1763331991295,0.0048794,3075.0,3074.9,2.53144]
[1763331991791,3.3620794,3075.0,3074.9,0.52724]
[1763331992000,0.0048794,3075.0,3074.9,2.53144]
[1763331995289,3.3620794,3075.0,3074.9,0.52724]
[1763331996198,2.1701,3074.8,3074.7,0.52727]
[1763331997794,2.1701,3074.5,3074.4,3.2078]
[1763331997994,1.77951337,3074.5,3074.4,3.2078]
[1763331998198,1.77951337,3074.5,3074.4,3.73512]
[1763331998396,1.1871,3074.4,3073.9,3.2078]
[1763331998596,3.3572,3074.4,3074.3,0.52734]
[1763331998798,3.88454,3074.4,3074.3,0.52734]
[1763331999001,3.3572,3074.4,3074.3,0.52734]
[1763331999197,3.3572,3074.4,3073.9,3.2078]
[1763331999397,2.1701,3074.0,3073.9,3.73521]
[1763331999696,1.1871,3074.4,3074.3,0.52734]
[1763331999697,3.88452,3074.4,3074.3,0.52734]
[1763332000591,0.52734,3074.3,3074.0,0.52739]
[1763332000796,2.1701,3074.2,3074.1,0.52737]
[1763332000995,1.1871,3074.4,3073.9,3.2078]
[1763332000996,2.1701,3074.0,3073.9,0.52741]
[1763332003804,2.69756,3073.6,3073.5,0.00241223]
[1763332004002,2.1701,3073.6,3073.5,0.52989223]
[1763332005206,5.3779,3073.6,3073.5,0.52989223]
[1763332005405,5.3779,3073.6,3073.5,0.00241223]
[1763332005613,5.90536,3073.6,3073.5,0.00241223]
[1763332005901,2.1701,3073.4,3073.3,0.0048794]
[1763332006806,2.1701,3073.4,3073.3,0.00772542]
[1763332010407,1.9355,3072.6,3072.5,3.2078]
[1763332010614,1.2348,3072.5,3072.1,3.2078]
[1763332010904,4.4426,3073.0,3072.1,3.2078]
[1763332011500,0.0048794,3072.9,3072.2,0.0048794]
[1763332012614,0.0048794,3072.9,3072.8,0.5276]
[1763332014011,1.9403794,3072.9,3072.8,0.5276]
[1763332016507,0.0048794,3072.9,3072.8,2.4134]
[1763332016808,0.00318102,3073.0,3072.9,2.41338]
[1763332018304,3.17348102,3073.0,3072.9,0.52758]
[1763332018513,0.00318102,3073.0,3072.9,0.52758]
[1763332019311,0.00318102,3073.0,3072.9,2.41338]
[1763332019511,3.2078,3073.4,3073.3,0.52751]
[1763332020320,0.87320318,3074.3,3073.7,1.8858]
[1763332020623,1.94281593,3074.3,3074.2,3.2078]
[1763332020913,0.00731593,3074.3,3074.2,3.2078]
[1763332021912,1.2348,3075.0,3074.2,11.11322064]
[1763332022219,4.3748795,3075.9,3073.9,0.0048794]
[1763332022220,3.2078,3075.9,3074.9,3.2078]
[1763332022518,3.2078,3075.9,3075.4,3.2078]
[1763332022910,1.23794279,3075.5,3075.4,3.21113612]
[1763332023119,3.17344279,3075.5,3075.4,3.21113612]
[1763332023619,3.17344279,3075.5,3075.4,0.00333612]
[1763332024114,3.17344279,3075.5,3075.4,3.21113612]
[1763332024307,1.23794279,3075.5,3075.4,3.21113612]
[1763332025622,3.17344279,3075.5,3075.4,3.21113612]
[1763332031119,1.9355,3074.9,3074.8,3.2078]
[1763332032219,1.9355,3074.9,3074.8,3.21048734]
[1763332032419,1.2348,3075.0,3074.8,3.21048734]
[1763332032620,1.9355,3074.9,3074.8,3.21048734]
[1763332034023,1.9355,3074.9,3074.8,0.00268734]
[1763332038832,4.4426,3075.0,3074.8,2.00118734]
[1763332039030,2.1315,3074.9,3074.8,0.00268734]
[1763332040329,4.4426,3075.0,3074.8,2.00118734]
[1763332040633,2.1315,3074.9,3074.8,0.00268734]
[1763332041035,3.2078,3075.0,3074.9,1.9985]
[1763332041237,3.2078,3075.4,3074.9,1.9985]
[1763332043142,3.2078,3075.4,3075.3,1.9985]
[1763332044232,1.2348,3076.5,3075.4,1.9985]
[1763332044435,1.2348,3076.5,3075.0,2.55652064]
[1763332044436,3.2078,3076.7,3076.3,1.9985]
[1763332044645,1.2599,3077.5,3076.9,1.9985]
[1763332044831,1.2599,3077.5,3076.9,3.90392064]
[1763332045135,1.2599,3078.0,3077.4,1.9985]
[1763332045336,0.00288121,3078.0,3077.9,1.9985]
[1763332045537,1.2599,3079.0,3077.9,5.2063]
[1763332045739,3.2078,3079.7,3078.6,3.2078]
[1763332046039,3.2078,3079.3,3078.6,3.2078]
[1763332046238,1.2599,3078.6,3078.1,3.2078]
[1763332046627,1.26320786,3078.6,3078.1,3.2078]
[1763332047041,1.26320786,3078.6,3077.7,3.2078]
[1763332047236,2.1315,3077.8,3077.7,3.2078]
[1763332047543,1.2599,3078.0,3077.7,3.2078]
[1763332049738,2.1315,3077.1,3076.6,3.2078]
[1763332050037,1.2599,3077.4,3076.6,3.2078]
[1763332050436,2.1315,3076.7,3076.6,3.2078]
[1763332050640,2.1315,3076.7,3076.0,0.30675504]
[1763332050641,2.1315,3076.7,3076.1,3.2078]
[1763332050832,0.0048794,3076.7,3076.1,3.21615573]
[1763332051744,0.52699,3076.4,3076.1,0.00835573]
[1763332051945,3.2078,3076.3,3076.1,0.00835573]
[1763332052841,3.2078,3076.3,3074.4,0.6511]
[1763332052842,1.2599,3075.8,3075.6,3.2078]
[1763332053043,1.2599,3075.8,3075.1,3.2078]
[1763332053241,1.2599,3075.1,3074.7,3.2078]
[1763332053440,1.2599,3075.8,3074.7,3.2078]
[1763332053635,0.52712,3075.6,3074.6,3.2078]
[1763332053945,1.2599,3075.1,3074.8,0.0048794]
[1763332055443,3.2078,3075.0,3074.8,0.0048794]
[1763332055847,0.52724,3074.9,3074.6,0.00288775]
[1763332056046,1.2599,3074.4,3073.8,3.2078]
[1763332056842,1.2599,3075.1,3074.2,3.2078]
[1763332056843,4.4677,3075.1,3074.2,3.2078]
[1763332057037,4.4677,3075.1,3074.3,0.0048794]
[1763332057645,1.2599,3075.1,3074.7,3.2078]
[1763332057838,0.0048794,3075.4,3074.7,3.2078]
[1763332058156,0.0048794,3075.4,3074.3,2.26190186]
[1763332058157,0.0048794,3075.4,3075.1,3.2078]
[1763332060242,3.2078,3076.3,3075.1,9.2078]
[1763332060445,0.52702,3076.2,3075.5,3.2078]
[1763332060641,1.2599,3075.8,3075.0,3.2078]
[1763332061250,0.0048794,3075.7,3075.0,3.2078]
[1763332065735,0.0048794,3075.7,3075.0,4.1626]
[1763332066142,0.0048794,3075.7,3075.6,1.9985]
[1763332068445,0.00419259,3076.4,3076.3,1.6638]
[1763332068646,3.2078,3077.1,3077.0,1.6596]
[1763332069048,3.2078,3077.5,3077.4,1.6596]
[1763332069346,0.0048794,3077.8,3077.7,1.6596]
[1763332069550,0.00795316,3077.8,3077.7,1.66355755]
[1763332069752,0.00795316,3077.8,3077.7,0.00395755]
[1763332070148,0.00795316,3077.8,3077.7,1.66355755]
[1763332070347,0.00795316,3077.8,3077.7,3.21175755]
[1763332071046,1.86915316,3077.8,3077.7,0.00395755]
[1763332072350,0.00795316,3077.8,3077.7,0.00395755]
[1763332072549,0.00795316,3077.8,3077.7,1.66355755]
[1763332072951,0.00795316,3077.8,3077.7,0.00395755]
[1763332073148,1.86915316,3077.8,3077.7,0.00395755]
[1763332073461,0.00795316,3077.8,3077.7,0.00395755]
[1763332074059,1.86915316,3077.8,3077.7,0.00395755]
[1763332074262,0.00795316,3077.8,3077.7,1.66355755]
[1763332075556,0.00795316,3077.8,3077.7,0.00395755]
[1763332075763,0.00795316,3077.8,3077.7,1.66355755]
[1763332077252,0.00795316,3077.8,3077.7,0.00395755]
[1763332078956,0.00795316,3077.8,3077.7,1.66355755]
[1763332080564,0.00795316,3077.8,3077.7,4.87135755]
[1763332080958,3.2078,3078.8,3078.5,1.6517]
[1763332081161,3.2078,3078.8,3078.7,1.6517]
[1763332081665,3.2078,3078.8,3078.1,3.2078]
[1763332081857,3.2078,3078.8,3078.0,2.25702246]
[1763332081858,0.003263,3078.8,3078.7,1.6517]
[1763332082063,1.864463,3078.8,3078.5,3.2078]
[1763332082266,0.003263,3078.8,3078.5,3.2078]
[1763332082561,1.2058,3078.6,3078.5,3.2078]
[1763332082865,1.8612,3077.3,3077.2,3.2078]
[1763332083165,3.2078,3077.7,3077.3,1.6556]
[1763332083368,1.2058,3077.4,3077.2,3.2078]
[1763332083956,1.8612,3077.3,3077.2,3.21025324]
[1763332084458,1.2058,3076.2,3075.7,3.2078]
[1763332084665,3.2078,3076.6,3075.7,3.2078]
[1763332084855,1.2058,3076.8,3075.7,3.2078]
[1763332084856,3.2078,3076.2,3075.7,3.2078]
[1763332085257,3.2104766,3076.2,3075.7,3.21132025]
[1763332085966,3.2104766,3076.2,3076.1,1.8874]
[1763332086759,3.2104766,3076.2,3075.7,3.21132025]
[1763332087768,0.0026766,3076.2,3076.1,1.8874]
[1763332088960,0.0026766,3076.2,3076.1,5.0952]
[1763332089153,3.2078,3077.1,3076.2,3.1115]
[1763332089362,3.2078,3077.1,3077.0,1.8874]
[1763332089864,3.2078,3077.5,3077.4,1.8874]
[1763332090266,3.2119236,3077.5,3077.4,1.8874]
[1763332090459,0.0041236,3077.5,3077.4,1.8874]
[1763332091868,3.2078,3078.3,3078.2,1.8874]
[1763332092066,3.2078,3078.3,3077.8,3.2078]
[1763332092262,3.2078,3078.3,3077.7,2.25702246]
[1763332092466,3.2078,3078.7,3078.1,3.2078]
[1763332092664,3.21137419,3078.7,3078.1,3.21057365]
[1763332093063,3.21137419,3078.7,3078.6,1.8874]
[1763332094074,3.21137419,3078.7,3078.1,0.00277365]
[1763332095166,1.2058,3078.6,3078.1,0.00277365]
[1763332095468,1.8612,3078.2,3078.1,0.00277365]
[1763332095864,3.2078,3078.3,3078.1,0.00277365]
[1763332096368,3.2078,3078.3,3078.2,1.7664]
[1763332097373,0.00357419,3078.7,3078.6,1.7664]
[1763332097671,3.2078,3079.6,3078.6,8.27602246]
[1763332097873,3.2078,3079.6,3079.0,3.2078]
[1763332098659,0.00331526,3079.6,3079.5,1.8455]
[1763332100967,3.2078,3080.8,3079.5,1.8455]
[1763332101173,0.76470893,3080.7,3079.8,3.2078]
[1763332101571,3.2078,3080.8,3079.8,3.2078]
[1763332101870,3.21109438,3080.8,3080.3,3.2078]
[1763332102072,3.21109438,3080.8,3080.3,3.21148659]
[1763332102972,2.8371,3080.4,3080.3,0.00368659]
[1763332103179,6.0449,3080.4,3080.3,0.00368659]
[1763332105178,5.0002,3080.4,3080.3,0.00368659]
[1763332105475,3.21109438,3080.8,3080.3,1.84918659]
[1763332106875,3.21109438,3080.8,3080.4,1.89778839]
[1763332107075,0.00329438,3080.8,3080.7,1.8455]
[1763332107270,3.2078,3081.2,3081.1,1.8455]
[1763332107473,3.2078,3081.2,3081.1,3.74328839]
[1763332107671,3.2078,3081.2,3081.1,1.8455]
[1763332107870,3.2078,3081.2,3080.7,1.89778839]
[1763332108266,3.21110668,3081.2,3080.7,1.89778839]
[1763332109868,0.00330668,3081.2,3081.1,1.8455]
[1763332110478,3.2078,3082.0,3081.5,1.8455]
[1763332110682,3.2078,3082.0,3081.5,3.74328839]
[1763332110879,3.2078,3082.5,3081.9,3.74328839]
[1763332111080,3.2078,3082.5,3081.9,3.74815978]
[1763332111279,3.21197039,3082.5,3081.9,3.74815978]
[1763332111767,1.7924,3082.0,3081.9,0.00487139]
[1763332111970,3.21197039,3082.5,3081.9,0.00487139]
[1763332112473,0.00417039,3082.5,3082.4,1.8455]
[1763332112777,0.00417039,3082.5,3082.2,5.10558839]
[1763332113181,0.00417039,3082.5,3082.4,1.8455]
[1763332114077,0.00417039,3082.5,3081.9,0.00487139]
[1763332114277,3.21197039,3082.5,3081.9,0.00487139]
[1763332114472,1.7924,3082.0,3081.9,0.00487139]
[1763332114872,7.7924,3082.0,3081.9,0.00487139]
[1763332115081,1.7924,3081.1,3080.6,3.2078]
[1763332115680,4.2525,3080.7,3079.7,3.2078]
[1763332116077,4.2525,3080.7,3080.2,0.00487139]
[1763332117181,0.52629,3080.5,3080.2,0.00487139]
[1763332117579,0.52647,3079.4,3078.9,3.2078]
[1763332117883,3.2078,3079.3,3078.9,3.2078]
[1763332118572,0.00276224,3079.3,3078.9,5.10869674]
[1763332122190,0.00276224,3079.3,3078.9,3.21090835]
[1763332122391,0.00276224,3079.3,3078.9,5.10869674]
[1763332124291,0.00276224,3079.3,3079.2,1.8455]
[1763332124792,1.0447,3080.7,3079.2,1.8455]
[1763332124793,3.2078,3080.3,3079.3,1.0561]
[1763332125001,3.2078,3080.3,3080.0,1.89778839]
[1763332125488,3.2078,3080.3,3079.9,3.2078]
[1763332125699,3.21112209,3080.3,3079.9,3.2078]
[1763332126986,3.21112209,3080.3,3079.6,1.89778839]
[1763332127391,1.0447,3080.0,3079.5,3.2078]
[1763332127891,3.21112209,3080.3,3079.5,3.2078]
[1763332129788,3.21112209,3080.3,3079.6,1.89778839]
[1763332131089,1.6829,3079.6,3079.5,3.2078]
[1763332132185,1.6829,3079.6,3078.9,0.00310835]
[1763332132386,3.2078,3079.5,3078.9,0.00310835]
[1763332133396,1.0832,3080.0,3078.9,0.00310835]
[1763332133397,3.2078,3079.9,3079.2,1.89778839]
[1763332133792,3.2078,3079.9,3079.2,2.87708839]
[1763332133988,3.2078,3079.9,3079.2,1.89778839]
[1763332134295,3.2078,3079.9,3079.1,3.2078]
[1763332134995,3.2078,3079.9,3079.3,1.89778839]
[1763332136392,3.73419,3079.9,3079.1,3.2078]
[1763332136996,1.60957,3080.0,3078.9,1.90089674]
[1763332137202,3.2078,3079.9,3079.2,3.2078]
[1763332137591,3.73418,3079.9,3079.2,3.2078]
[1763332138396,3.2078,3079.9,3079.2,3.2078]
[1763332139490,3.2078,3079.5,3078.9,1.90089674]
[1763332139902,3.2078,3079.5,3078.9,0.00310835]
[1763332140305,1.6829,3079.4,3079.0,3.2078]
[1763332140712,1.6829,3079.0,3078.9,0.00310835]
[1763332141002,1.0832,3079.2,3078.9,0.00310835]
[1763332141600,0.00487139,3079.3,3079.0,3.2078]
[1763332142205,1.6829,3079.1,3078.9,0.00310835]
[1763332143210,0.00487139,3079.3,3078.9,0.00310835]
[1763332143393,1.6829,3079.0,3078.9,0.00310835]
[1763332144002,1.0832,3079.2,3078.9,0.00310835]
[1763332144305,0.00487139,3079.3,3078.9,0.00310835]
[1763332144497,1.0832,3079.2,3078.9,0.00310835]
[1763332144900,0.00487139,3079.3,3079.2,2.6554]
[1763332145108,3.2078,3079.9,3079.2,4.55318839]
[1763332145411,0.76561591,3079.8,3079.2,1.6558]
[1763332146100,0.77046063,3079.8,3079.2,1.6558]
[1763332147103,0.77046063,3079.8,3079.0,3.2078]
[1763332147409,1.6829,3079.3,3079.0,3.2078]
[1763332147598,1.6829,3079.1,3078.9,0.00310835]
[1763332148395,4.291,3079.5,3079.0,3.2078]
[1763332148611,0.76619961,3079.4,3079.0,3.2078]
[1763332149407,1.6829,3079.1,3079.0,3.2078]
[1763332149606,0.52663,3078.5,3078.3,4.057e-05]
[1763332149804,4.84952792,3078.4,3077.7,0.29885683]
[1763332150002,4.84952792,3078.4,3077.5,1.0358]
[1763332150003,0.76652817,3078.3,3078.2,1.6558]
[1763332150200,0.76652817,3078.3,3078.0,1.0358]
[1763332150605,0.76652817,3078.3,3078.0,0.00272872]
[1763332150802,1.64172792,3078.3,3077.8,0.00487139]
[1763332151003,3.2078,3077.9,3077.8,0.00487139]
[1763332151514,3.99946312,3077.9,3077.8,0.00487139]
[1763332151915,11.40399763,3077.9,3076.8,0.9996]
[1763332152213,3.2078,3077.2,3077.1,1.6558]
[1763332152410,3.2078,3077.2,3076.8,1.30882548]
[1763332152918,3.2078,3077.2,3076.8,1.00219913]
[1763332154004,3.73465,3077.2,3076.8,1.00219913]
[1763332154310,3.2078,3077.6,3077.5,1.6558]
[1763332155806,0.00259476,3077.9,3077.8,1.6085]
[1763332156008,0.00487139,3078.5,3077.8,3.50628839]
[1763332156309,0.00487139,3078.5,3078.0,0.9494]
[1763332156507,3.2078,3078.8,3078.7,1.6085]
[1763332156815,3.2078,3079.3,3078.7,1.6085]
[1763332157012,0.00304621,3078.8,3078.7,1.6085]
[1763332159210,0.00304621,3078.8,3078.7,1.6459]
[1763332159512,1.713,3078.5,3078.4,0.00487139]
[1763332160410,3.21084621,3078.8,3078.4,0.00487139]
[1763332162113,1.713,3078.5,3078.4,0.00487139]
[1763332162615,0.00304621,3078.8,3078.4,0.00487139]
[1763332162914,0.00304621,3078.8,3078.7,1.6459]
[1763332166211,0.00304621,3078.8,3078.4,1.90265978]
[1763332166212,0.00304621,3078.8,3078.4,0.00487139]
[1763332166715,0.00304621,3078.8,3078.7,1.6459]
[1763332166921,0.00304621,3078.8,3078.4,0.00487139]
[1763332168318,3.21084621,3078.8,3078.4,0.00487139]
[1763332168519,1.713,3078.5,3078.4,0.00487139]
[1763332169024,3.03144147,3078.5,3078.4,0.00487139]
[1763332169920,2.50482147,3078.5,3078.4,0.00487139]
[1763332171823,0.79182147,3078.5,3078.4,1.65077139]
[1763332172017,2.50482147,3078.5,3078.4,0.00487139]
[1763332173218,1.713,3078.5,3078.4,0.00487139]
[1763332175317,4.01352665,3078.5,3078.4,0.00487139]
[1763332175922,1.713,3077.9,3077.8,3.2078]
[1763332176125,1.713,3077.9,3077.4,4.2436]
[1763332177726,2.23981,3077.4,3077.3,0.00487139]
[1763332177929,6.24927203,3077.4,3077.3,0.00487139]
[1763332178624,1.713,3076.9,3076.8,0.00259913]
[1763332178815,4.9208,3076.9,3076.8,0.00259913]
[1763332180724,5.72179155,3076.9,3076.8,0.00259913]
[1763332181025,4.9208,3076.9,3076.8,0.00259913]
[1763332182225,3.2078,3076.9,3076.8,0.00259913]
[1763332182427,0.00487139,3077.2,3077.1,1.6459]
[1763332186532,3.2078,3077.9,3077.1,4.8537]
[1763332187528,0.00487139,3077.8,3077.1,4.8537]
[1763332190328,0.00487139,3077.8,3077.7,1.6459]
[1763332190527,3.2078,3078.5,3078.4,1.5333]
[1763332191736,3.2078,3078.5,3078.1,0.00487139]
[1763332191932,1.4702,3078.2,3078.1,0.00487139]
[1763332192126,3.2078,3078.5,3078.1,0.00487139]
[1763332192326,0.80237659,3078.4,3078.1,0.00487139]
[1763332192637,1.4702,3078.2,3078.1,0.00487139]
[1763332193028,2.27267742,3078.2,3078.1,0.00487139]
[1763332193935,5.48047742,3078.2,3078.1,0.00487139]
[1763332194730,4.01027742,3078.2,3078.1,0.00487139]
[1763332195032,3.2078,3078.6,3078.1,1.53817139]
[1763332200444,3.2078,3078.6,3078.5,2.5471]
[1763332200642,1.4702,3078.6,3078.1,0.00487139]
[1763332201030,5.20467,3078.2,3078.1,0.00487139]
[1763332201341,1.4702,3077.6,3077.5,3.2078]
[1763332201543,1.08000043,3077.6,3077.5,3.2078]
[1763332201848,1.08000043,3077.6,3077.1,3.2078]
[1763332202049,3.73449,3078.1,3077.1,3.2078]
[1763332202239,1.3351548,3078.0,3077.3,0.00487139]
[1763332202438,0.8084448,3077.9,3077.3,0.00487139]
[1763332202840,1.4702,3077.4,3077.3,0.00487139]
[1763332203342,1.99701,3077.4,3077.3,0.00487139]
[1763332203541,1.4702,3076.9,3076.2,3.2078]
[1763332203748,4.678,3076.9,3076.2,3.2078]
[1763332203937,4.678,3076.9,3076.0,1.0138]
[1763332204137,0.80882259,3076.8,3076.0,1.0138]
[1763332204338,1.4702,3076.1,3075.7,3.2078]
[1763332204948,1.4702,3075.8,3075.7,3.21052225]
[1763332205245,1.4702,3075.8,3075.7,0.00272225]
[1763332209840,3.21021303,3076.1,3075.7,0.00272225]
[1763332210951,1.4702,3075.8,3075.7,0.00272225]
[1763332214653,3.21021303,3076.1,3075.1,3.2078]
[1763332214654,1.4702,3075.2,3075.1,3.2078]
[1763332214844,3.21021303,3076.1,3075.1,3.2078]
[1763332215042,10.954,3076.0,3075.1,3.2078]
[1763332215457,3.21021303,3076.1,3075.1,3.2078]
[1763332215648,3.2078,3075.2,3073.5,1.0138]
[1763332215860,3.2078,3073.8,3073.5,1.01622013]
[1763332216057,3.21138477,3073.8,3073.5,1.01622013]
[1763332216362,0.52744,3073.7,3073.5,0.00242013]
[1763332216659,19.29038477,3073.8,3073.0,1.0138]
[1763332216866,3.2078,3073.1,3073.0,1.0138]
[1763332217158,3.2078,3073.1,3072.5,1.0138]
[1763332217465,3.21268019,3073.1,3072.5,1.02063829]
[1763332217667,3.2078,3072.7,3072.5,1.02063829]
[1763332219356,3.2078,3072.7,3072.5,0.00683829]
[1763332220166,3.21268019,3073.1,3073.0,1.3659]
[1763332220465,3.2078,3073.7,3073.0,4.5737]
[1763332220857,3.2078,3073.7,3073.6,1.3659]
[1763332221264,0.00358477,3073.8,3073.7,1.3659]
[1763332224871,0.00358477,3073.8,3073.6,3.2078]
[1763332226475,1.4567,3073.7,3073.6,3.2078]
[1763332226777,0.00358477,3073.8,3073.6,3.2078]
[1763332227078,0.87324923,3075.8,3074.5,1.3659]
[1763332227369,3.2078,3075.0,3074.9,1.3659]
[1763332227776,3.2078,3075.8,3075.3,1.3659]
[1763332227970,3.2078,3075.8,3075.3,1.36914153]